{"text_format":"3","workbook":"xlsx","n_sheets":4,"sheets":["CLUSTER 3 - CONSUMABLES","CLUSTER 3 - CHEMICALS","CLUSTER 3- EQUIPMENT","CLUSTER 3- TRAINING"],"not_rendered":{"images":176,"defined_names":6},"read":"whole","date_system":"1900"}

{"sheet":"CLUSTER 3 - CONSUMABLES","index":0,"n_rows":174,"n_cols":7,"rows_kept":174,"merged":[[0,1,0,8],[1,1,1,8],[2,1,2,8],[3,1,3,8],[4,0,4,8],[6,0,6,8],[7,0,7,8],[8,0,8,8],[9,0,9,8],[10,0,10,8],[11,0,11,8],[12,0,12,8],[13,0,13,8],[14,0,14,8],[15,0,15,8],[16,0,16,8],[17,0,17,8],[18,0,18,8],[19,0,19,6],[21,0,21,6],[22,0,24,0],[25,0,26,0],[31,0,31,6],[37,0,37,6],[39,0,42,0],[43,0,43,6],[47,0,47,6],[50,0,50,6],[51,0,53,0],[55,0,55,6],[61,0,62,0],[63,0,64,0],[65,0,65,6],[67,0,70,0],[71,0,72,0],[73,0,73,6],[74,0,75,0],[77,0,77,6],[78,0,85,0],[91,0,91,6],[92,0,93,0],[95,0,95,6],[96,0,97,0],[99,0,99,6],[100,0,104,0],[107,0,107,6],[108,0,110,0],[113,0,114,0],[116,0,117,0],[121,0,121,6],[122,0,127,0],[128,0,131,0],[132,0,132,6],[135,0,135,6],[136,0,137,0],[138,1,138,6],[139,0,140,0],[141,1,141,6],[143,1,143,6],[144,0,145,0],[146,0,146,6],[148,0,148,6],[152,0,152,6],[155,0,155,6],[157,0,157,6],[159,0,159,6],[161,0,161,6],[163,0,163,6],[165,0,165,5],[167,5,167,6],[168,5,168,6],[170,2,170,3],[171,2,171,3],[172,2,172,3],[173,2,173,3]]}
["TENDER NUMBER","RFP 02/2023"]
["TENDER NAME","SPECIFICATIONS FOR THE PROVISION OF CLEANING CONSUMABLES, CHEMICALS AND INDUSTRIAL EQUIPMENT TO SARS OFFICES NATIONWIDE"]
["CLUSTER","FREE STATE,WESTERN CAPE; EASTERN CAPE AND NORTHERN CAPE"]
["BIDDER NAME"]
["SARS CLEANING MATERIAL AND EQUIPMENT SCHEDULE"]
[]
["Notes:"]
["1. The Bidder must only complete \"ALL GREEN\" cells in full for the Clusters they are bidding for. All highlighted cells must be populated and if no cost is inserted it will be regarded as zero."]
["2. Bidders are not allowed to change the pricing template .  Any changes by the bidders may result in their bid being non-responsive. Bidders may submit supporting documents to clarify."]
["3.Bidders are required to submit pricing only for the Clusters that they are bidding for. "]
["4. All prices provided must INCLUDE VAT. The prices must be given in South African Rand and must be all inclusive as no additional costs will be allowed."]
["5. The price will be escalated on an annual basis, in line with CPI."]
["6. Bidders are required to submit a signed hardcopy and excel version of the pricing on a soft copy."]
["7. The Bidders pricing is to remain firm for 180 days from the closing date of this tender; SARS reserves the right to negotiate with the recommended bidder prior to signing of the contract."]
["8. Bidders must take note that the tender is sub-divided into Four (4) submissions (Consumables , Chemicals, Equipment , Training and Printing), Bidders are required to complete pricing for ALL Sheets provided within the pricing template Per CLUSTER "]
["9. Bidders to read the pricing template in conjunction with the specification and the Main RFP document"]
["10. Bidders to ensure that all the items listed on the pricing template  Per CLUSTER   are priced for . An incomplete pricing response  will be disqualified  "]
["11. Quantities provided are based on annual estimates and may change. SARS reserves the right to increase or decrease SARS Sites  and quantities within a cluster due to operational requirements, at anytime during the execution of the MSA."]
["12. Supply equipment factory warranty of 12 (twelve) months and maintenance for a period of 24 (twenty-four) months from date of delivery."]
["Bidders to provide codes for ordering purposes. Unit prices to be inclusive of VAT\nSIMILAR OR EQUAL TO PRODUCT, BIDDER TO STATE NAME OF PRODUCT "]
["PICTURE","CODE","DESCRIPTION - STANDARD JANITORIAL PRODUCTS (PROVIDE SIMILAR OR EQUAL PRODUCT)","UNIT MEASURE","ESTIMATED QUANTITIES","UNIT PRICE VAT INCL","TOTAL ANNUAL COSTS VAT INCL"]
["MATERIAL: MOP COMPLETE                                                                                                                        (UNIT PRICE VAT INCLUSIVE)"]
[null,null,"350g FAN MOP HEAD (with handle)","EACH",16,null,{"$f":"E23*F23","v":{"v":0,"d":"R 0.00"}}]
[null,null,"400g FAN MOP HEAD (with handle)","EACH",10,null,{"$f":"E24*F24","v":{"v":0,"d":"R 0.00"}}]
[null,null,"500g FAN MOP HEAD (with handle)","EACH",10,null,{"v":0,"d":"R 0.00"}]
[null,null,"300g FAN MOP HEAD MINI - 38MM WEBBING (MAROON STRIPE) (with handle)","EACH",4,null,{"v":0,"d":"R 0.00"}]
[null,null,"300g FAN MOP HEAD MINI - 38MM WEBBING (RED) (with handle)","EACH",4,null,{"v":0,"d":"R 0.00"}]
[null,null,"400g COLOUR CODED FAN MOP HEAD - 38MM WEBBING (BLACK) (with handle)","EACH",4,null,{"v":0,"d":"R 0.00"}]
[null,null,"400g COLOUR CODED FAN MOP HEAD - 90MM WEBBING (BLACK) (with handle)","EACH",4,null,{"v":0,"d":"R 0.00"}]
[null,null,"500g COLOUR CODED FAN MOP HEAD - 38MM WEBBING (BLACK) (with handle)","EACH",4,null,{"v":0,"d":"R 0.00"}]
[null,null,"400g COLOUR CODED FAN MOP HEAD - 38MM WEBBING, LOOPED WITH STITCHED ENDS (BLUE) (with handle)","EACH",4,null,{"v":0,"d":"R 0.00"}]
["MATERIAL: MOP  HEADS                                                                                                                                  (UNIT PRICE VAT INCLUSIVE)"]
[null,null,"MICROFIBRE FAN MOP HEAD - BLUE (With colour coded tags) (incl. handle)","EACH",4,null,{"$f":"E33*F33","v":{"v":0,"d":"R 0.00"}}]
[null,null,"HYGIENE (SPUNLACE) FAN MOP HEAD  (BLACK) (incl. handle)","EACH",4,null,{"$f":"E34*F34","v":{"v":0,"d":"R 0.00"}}]
[null,null,"HYGIENE (SPUNLACE) ROUND MOP HEAD  (BLUE) (incl. handle)","EACH",4,null,{"$f":"E35*F35","v":{"v":0,"d":"R 0.00"}}]
[null,null,"200g STANDARD MOP PLASTIC SOCKET HEAD ONLY (incl. handle)","EACH",4,null,{"v":0,"d":"R 0.00"}]
[null,null,"500g SUPA MOP METAL SOCKET HEAD ONLY (incl. handle)","EACH",10,null,{"v":0,"d":"R 0.00"}]
["MATERIALS: MOPS  COMPLETE                                                                                                                (UNIT PRICE VAT INCLUSIVE)"]
[null,null,"300g JUMBO ROUND MOP PLASTIC SOCKET (incl Uncoated handle)","EACH",10,null,{"v":0,"d":"R 0.00"}]
[null,null,"200g STANDARD MOP METAL SOCKET (incl Uncoated handle)","EACH",270,null,{"v":0,"d":"R 0.00"}]
[null,null,"350g MOP METAL SOCKET ( incl Uncoated handle)","EACH",8,null,{"v":0,"d":"R 0.00"}]
[null,null,"500g SUPA MOP METAL SOCKET (incl Uncoated handle)","EACH",10,null,{"v":0,"d":"R 0.00"}]
[null,null,"500g SUPA MOP METAL SOCKET (incl Varnished handle)","EACH",20,null,{"v":0,"d":"R 0.00"}]
["MATERIALS: HANDLES AND SOCKETS                                                                                                      (UNIT PRICE VAT INCLUSIVE)"]
[null,null,"WOODEN HANDLE - UNCOATED 25mm x 1.2m","EACH",20,null,{"v":0,"d":"R 0.00"}]
[null,null,"WOODEN HANDLE - VARNISHED 25mm x 1.2m","EACH",20,null,{"v":0,"d":"R 0.00"}]
[null,null,"HANDLE GRIP 22mm (BLACK)","EACH",10,null,{"v":0,"d":"R 0.00"}]
["MATERIALS: HANDLES AND SOCKETS                                                                                                    (UNIT PRICE VAT INCLUSIVE)"]
[null,null,"FAN MOP HOLDER SPRING CLIP+ALUM. HANDLE","EACH",10,null,{"v":0,"d":"R 0.00"}]
[null,null,"FAN MOP HOLDER SPRING CLIP+ALUM OVERMOULDED PLASTIC HANDLE (BLACK)","EACH",92,null,{"$f":"E50*F50","v":{"v":0,"d":"R 0.00"}}]
["MATERIALS: HANDLES AND SOCKETS                                                                                                    (UNIT PRICE VAT INCLUSIVE)"]
[null,null,"425mm - BLACK - Stripping Pad",null,30,null,{"$f":"E52*F52","v":{"v":0,"d":"R 0.00"}}]
[null,null,"425mm - RED - Buffing Pad",null,30,null,{"$f":"E53*F53","v":{"v":0,"d":"R 0.00"}}]
[null,null,"425mm - WHITE - Super Polish Pad",null,30,null,{"$f":"E54*F54","v":{"v":0,"d":"R 0.00"}}]
[null,null,"425mm  MICRO FIBRE PAD",null,10,null,{"$f":"E55*F55","v":{"v":0,"d":"R 0.00"}}]
["E-LINEFLOOR PAD RANGE & SCOURERS                                                                                               (UNIT PRICE VAT INCLUSIVE)"]
[null,null,"THINLINE GREEN HAND PADS  (14cm X 21cm) - SOLD IN PACKS OF 10 ONLY","EACH",400,null,{"$f":"E57*F57","v":{"v":0,"d":"R 0.00"}}]
[null,null,"POT SCOURERS STANDARD  (pack of 36) ","PACK",100,null,{"$f":"E58*F58","v":{"v":0,"d":"R 0.00"}}]
[null,null,"STEELWOOL 50g","EACH",50,null,{"v":0,"d":"R 0.00"}]
[null,null,"SPONGE SCOURERS  SMALL - (75mm X  55mm) - SOLD IN PACKS OF 3","EACH",500,null,{"v":0,"d":"R 0.00"}]
[null,null,"DOODLEBUG PADS - 25cm X 12cm (WHITE)","EACH",230,null,{"v":0,"d":"R 0.00"}]
[null,null,"DOODLEBUG HOLDER","EACH",90,null,{"v":0,"d":"R 0.00"}]
[null,null,"DOODLEBUG HOLDER: Econo","EACH",90,null,{"v":0,"d":"R 0.00"}]
[null,null,"Coreless Roll Liner - 20x22, 6 micron, Clear bags","Pack of 100",500,null,{"v":0,"d":"R 0.00"}]
[null,null,"Coreless Roll Liner - 20x22, 9 micron, Clear bags","Pack of 50's",60,null,{"v":0,"d":"R 0.00"}]
["JANITORIAL EQUIPMENT RANGE                                                                                                              (UNIT PRICE VAT INCLUSIVE)"]
[null,null,"2PC ECONO WET FLOOR SIGN","EACH",50,null,{"$f":"E67*F67","v":{"v":0,"d":"R 0.00"}}]
[null,null,"8L PLASTIC BUCKET (BLUE)","EACH",40,null,{"$f":"E68*F68","v":{"v":0,"d":"R 0.00"}}]
[null,null,"8L PLASTIC BUCKET (GREEN)","EACH",40,null,{"$f":"E69*F69","v":{"v":0,"d":"R 0.00"}}]
[null,null,"8L PLASTIC BUCKET (RED)","EACH",40,null,{"v":0,"d":"R 0.00"}]
[null,null,"8L PLASTIC BUCKET (YELLOW)","EACH",40,null,{"v":0,"d":"R 0.00"}]
[null,null,"25L SINGLE PLASTIC BUCKET (BLUE)","EACH",6,null,{"v":0,"d":"R 0.00"}]
[null,null,"25L SINGLE PLASTIC BUCKET (RED)","EACH",6,null,{"$f":"E73*F73","v":{"v":0,"d":"R 0.00"}}]
["DUSTERS                                                                                                                                                   (UNIT PRICE VAT INCLUSIVE)"]
[null,null,"900mm FEATHER DUSTER (MEDIUM)","EACH",10,null,{"$f":"E75*F75","v":{"v":0,"d":"R 0.00"}}]
[null,null,"1840mm FEATHER DUSTER (LONG)","EACH",30,null,{"$f":"E76*F76","v":{"v":0,"d":"R 0.00"}}]
[null,null,"Synthetic / Magic Duster (SHORT)","EACH",7,null,{"v":0,"d":"R 0.00"}]
["E-LINE - FLOOR TOOLS - SWEEPING & MOPPING                                                                                (UNIT PRICE VAT INCLUSIVE)"]
[null,null,"40cm DUSTMOP SWEEPER FRAME","EACH",10,null,{"$f":"E79*F79","v":{"v":0,"d":"R 0.00"}}]
[null,null,"40cm DUSTMOP SWEEPER SLEEVE BLUE ACRYLIC","EACH",10,null,{"$f":"E80*F80","v":{"v":0,"d":"R 0.00"}}]
[null,null,"60cm DUSTMOP SWEEPER FRAME","EACH",10,null,{"v":0,"d":"R 0.00"}]
[null,null,"60cm DUSTMOP SWEEPER SLEEVE BLUE ACRYLIC","EACH",10,null,{"v":0,"d":"R 0.00"}]
[null,null,"80cm DUSTMOP SWEEPER FRAME","EACH",10,null,{"v":0,"d":"R 0.00"}]
[null,null,"80cm DUSTMOP SWEEPER SLEEVE BLUE ACRYLIC","EACH",10,null,{"v":0,"d":"R 0.00"}]
[null,null,"100cm DUSTMOP SWEEPER FRAME","EACH",10,null,{"v":0,"d":"R 0.00"}]
[null,null,"100cm DUSTMOP SWEEPER SLEEVE BLUE ACRYLIC","EACH",10,null,{"v":0,"d":"R 0.00"}]
[null,null,"MICROFIBRE TOOL (Handle and sleeve not included)","EACH",10,null,{"v":0,"d":"R 0.00"}]
[null,null,"MICROFIBRE SLEEVE WITH VELCO BACKING (WITH COLOURED TAGS)\n(FREE OF METAL EYELIDS - NO RUST)                                                               ","EACH ",10,null,{"v":0,"d":"R 0.00"}]
[null,null,"SPRAY MOP COMPLETE (2 SLEEVES INCLUDED)","EACH",10,null,{"v":0,"d":"R 0.00"}]
[null,null,"SPRAY MOP REPLACEMENT SLEEVE ONLY ","EACH",10,null,{"v":0,"d":"R 0.00"}]
[null,null,"SPRAY MOP REPLACEMENT BOTTLE ONLY","EACH",10,null,{"v":0,"d":"R 0.00"}]
["E-LINE WINDOW CLEANING EQUIPMENT                                                                                                                       (UNIT PRICE VAT INCLUSIVE)"]
[null,null,"1.1m WINDOW SQUEEGEE","EACH",10,null,{"$f":"E93*F93","v":{"v":0,"d":"R 0.00"}}]
[null,null,"2.1m WINDOW SQUEEGEE","EACH",10,null,{"$f":"E94*F94","v":{"v":0,"d":"R 0.00"}}]
[null,null,"ECONO WINDOW CLEANING KIT\n(Includes: Sponge, 2 x 1.1m E-line telepole, 20cm window scraper with handle, 35cm window washer, 3 x channel and rubbers (24cm, 35cm, 45cm), crank joint, channel with 10 blades, 92cm rubber)                                                                                                                               ","EACH",30,null,{"v":0,"d":"R 0.00"}]
["COLOUR CODED HEADS & HANDLES                                                                                                       (UNIT PRICE VAT INCLUSIVE)"]
[null,null,"450mm HYGIENE BROOM HEAD  - HARD (BLACK) (incl handle)","EACH",10,null,{"$f":"E97*F97","v":{"v":0,"d":"R 0.00"}}]
[null,null,"450mm HYGIENE BROOM HEAD  - SOFT (BLACK) (incl. handle)","EACH",10,null,{"$f":"E98*F98","v":{"v":0,"d":"R 0.00"}}]
[null,null,"HD HYGIENE HANDLE PLASTIC MOULDED THREAD - 25mm (BLACK) (incl. handle)","EACH",20,null,{"v":0,"d":"R 0.00"}]
["CLEANING CLOTHS                                                                                                                                             (UNIT PRICE VAT INCLUSIVE)"]
[null,null,"280gsm WOVEN MICROFIBRE CLOTH - 38cm x 38cm (BLUE)","EACH",650,null,{"$f":"E101*F101","v":{"v":0,"d":"R 0.00"}}]
[null,null,"280gsm WOVEN MICROFIBRE CLOTH - 38cm x 38cm (GREEN)","EACH",650,null,{"$f":"E102*F102","v":{"v":0,"d":"R 0.00"}}]
[null,null,"280gsm WOVEN MICROFIBRE CLOTH - 38cm x 38cm (RED)","EACH",650,null,{"v":0,"d":"R 0.00"}]
[null,null,"280gsm WOVEN MICROFIBRE CLOTH - 38cm x 38cm (YELLOW)","EACH",650,null,{"v":0,"d":"R 0.00"}]
[null,null,"280gsm WOVEN MICROFIBRE CLOTH - 38cm x 38cm (WHITE)","EACH",650,null,{"v":0,"d":"R 0.00"}]
[null,null,"DISH CLOTH DELUXE - DC50 (10/PACK)","PACK",400,null,{"v":0,"d":"R 0.00"}]
[null,null,"DISH SWAB (10/PACK)","PACK",300,null,{"v":0,"d":"R 0.00"}]
["GLOVES & MOP CAPS                                                                                                                        (UNIT PRICE VAT INCLUSIVE)"]
[null,null,"YELLOW HOUSEHOLD GLOVES  - SMALL","PAIR",650,null,{"$f":"E109*F109","v":{"v":0,"d":"R 0.00"}}]
[null,null,"YELLOW HOUSEHOLD GLOVES - MEDIUM","PAIR",650,null,{"$f":"E110*F110","v":{"v":0,"d":"R 0.00"}}]
[null,null,"YELLOW HOUSEHOLD GLOVES - LARGE","PAIR",650,null,{"v":0,"d":"R 0.00"}]
[null,null,"BLUE HOUSEHOLD GLOVES - MEDIUM","PAIR",570,null,{"v":0,"d":"R 0.00"}]
[null,null,"GREEN NITRILE GLOVES - SIZE 9 / M","PAIR",670,null,{"v":0,"d":"R 0.00"}]
[null,null,"BLACK RUBBER GLOVES INDUSTRIAL - MEDIUM","PAIR",300,null,{"v":0,"d":"R 0.00"}]
[null,null,"BLACK RUBBER GLOVES INDUSTRIAL - LARGE","PAIR",300,null,{"v":0,"d":"R 0.00"}]
[null,null,"CANDY STRIPE GLOVES","PAIR",10,null,{"v":0,"d":"R 0.00"}]
[null,null,"PLASTIC APRON THICK","EACH",10,null,{"v":0,"d":"R 0.00"}]
[null,null,"PLASTIC COLOURED APRONS - 100pc/pack (BLUE)","PACK",10,null,{"v":0,"d":"R 0.00"}]
[null,null,"DUST MASKS FFP1 (box of 20pc)","PACK",20,null,{"v":0,"d":"R 0.00"}]
[null,null,"EAR PLUGS CORDED","PAIR",5,null,{"v":0,"d":"R 0.00"}]
[null,null,"RAGS (sold in bales of 5kgs)","1KG",20,null,{"v":0,"d":"R 0.00"}]
["EXTRAS                                                                                                                                                               (UNIT PRICE VAT INCLUSIVE)"]
[null,null,"SPRAY TRIGGER HEAD ONLY (BLUE)","EACH",20,null,{"$f":"E123*F123","v":{"v":0,"d":"R 0.00"}}]
[null,null,"SPRAY TRIGGER HEAD ONLY (GREEN)","EACH",20,null,{"$f":"E124*F124","v":{"v":0,"d":"R 0.00"}}]
[null,null,"SPRAY TRIGGER HEAD ONLY (RED)","EACH",20,null,{"v":0,"d":"R 0.00"}]
[null,null,"SPRAY TRIGGER HEAD ONLY (YELLOW)","EACH",20,null,{"v":0,"d":"R 0.00"}]
[null,null,"SPRAY TRIGGER HEAD ONLY (WHITE)","EACH",20,null,{"v":0,"d":"R 0.00"}]
[null,null,"750ml spray bottle with label","EACH",100,null,{"v":0,"d":"R 0.00"}]
[null,null,"REFUSE BAG CLEAR H/DUTY 30MIC (pack of 200)","PACK",100,null,{"v":0,"d":"R 0.00"}]
[null,null,"REFUSE BAG CLEAR L/DUTY 25MIC (pack of 200)","PACK",600,null,{"v":0,"d":"R 0.00"}]
[null,null,"REFUSE BAG CLEAR XH/DUTY 40MIC (pk of 100) ex CPT","PACK",100,null,{"v":0,"d":"R 0.00"}]
[null,null,"REFUSE BAG CLEAR L/DUTY 25MIC  (pk of 100) ex CPT","PACK",100,null,{"v":0,"d":"R 0.00"}]
["HEAVY DUTY ROTO MOULDED BUCKETS                                                                               (UNIT PRICE VAT INCLUSIVE)"]
[null,null,"10L Plastic Bucket (Dark Blue)","Each",10,null,{"$f":"E134*F134","v":{"v":0,"d":"R 0.00"}}]
[null,null,"20L Plastic Bucket (Turquoise)","Each",10,null,{"$f":"E135*F135","v":{"v":0,"d":"R 0.00"}}]
["FLOOR SQUEEGEES                                                                                                                (UNIT PRICE VAT INCLUSIVE)"]
[null,null,"450mm Metal Floor Squeegees ","Each",10,null,{"$f":"E137*F137","v":{"v":0,"d":"R 0.00"}}]
[null,null,"600mm Metal Floor Squeegees ","Each",10,null,{"$f":"E138*F138","v":{"v":0,"d":"R 0.00"}}]
["HACCP COMPLIANT!","HYGIENE HEADS                                                                                                               (UNIT PRICE VAT INCLUSIVE)"]
[null,null,"450mm TINTA HYGIENE BROOM HEAD incl handle - HARD (BLACK)","EACH",50,null,{"$f":"E140*F140","v":{"v":0,"d":"R 0.00"}}]
[null,null,"450mm TINTA HYGIENE BROOM HEAD incl handle - SOFT (BLACK)","EACH",50,null,{"$f":"E141*F141","v":{"v":0,"d":"R 0.00"}}]
["HACCP COMPLIANT!","MOULDED HANDLES                                                                                                        (UNIT PRICE VAT INCLUSIVE)"]
[null,null,"MOULDED TOP & PLASTIC BOTTOM THREAD HANDLE - 1.3 x 24mm (BLACK)","EACH",50,null,{"$f":"E143*F143","v":{"v":0,"d":"R 0.00"}}]
["HACCP COMPLIANT!","SCRUBS                                                                                                                       (UNIT PRICE VAT INCLUSIVE)"]
[null,null,"175mm SCRUB - HARD BRISTLE (BLACK)","EACH",50,null,{"$f":"E145*F145","v":{"v":0,"d":"R 0.00"}}]
[null,null,"175mm SCRUB - SOFT BRISTLE (BLACK)","EACH",50,null,{"$f":"E146*F146","v":{"v":0,"d":"R 0.00"}}]
["HOUSEHOLD BROOMS                                                                                                                               (UNIT PRICE VAT INCLUSIVE)"]
[null,null,"Plastic Back Screw Fit Broom - Flagged (PROMO COLOUR CODED HOUSEHOLD) *GREY Bristle with GREY Powder / Epoxy Coated Metal Handle to be included ","EACH",100,null,{"$f":"E148*F148","v":{"v":0,"d":"R 0.00"}}]
["WOODEN HANDLES                                                                                                                                         (UNIT PRICE VAT INCLUSIVE)"]
[null,null,"Grip Handle","EACH",110,null,{"$f":"E150*F150","v":{"v":0,"d":"R 0.00"}}]
[null,null,"450mm (18\") Platform Broom Brown PVC - Hard Fibre","EACH",110,null,{"$f":"E151*F151","v":{"v":0,"d":"R 0.00"}}]
[null,null,"Deck Scrub (Block Type) - Wooden Handle","EACH",5,null,{"v":0,"d":"R 0.00"}]
["SCRUBS & BRUSHES                                                                                                                                      (UNIT PRICE VAT INCLUSIVE)"]
[null,null,"Snake Scrub","EACH",10,null,{"$f":"E154*F154","v":{"v":0,"d":"R 0.00"}}]
[null,null,"Snakette Scrub","EACH",10,null,{"$f":"E155*F155","v":{"v":0,"d":"R 0.00"}}]
["DUST PANS                                                                                                                                                       (UNIT PRICE VAT INCLUSIVE)"]
[null,null,"Dust Pan SET - WHITE","EACH",192,null,{"$f":"E157*F157","v":{"v":0,"d":"R 0.00"}}]
["TOILET BRUSHES                                                                                                                                           (UNIT PRICE VAT INCLUSIVE)"]
[null,null,"Toilet Brush Set - Square","EACH",400,null,{"$f":"E159*F159","v":{"v":0,"d":"R 0.00"}}]
["PLUNGERS                                                                                                                                                         (UNIT PRICE VAT INCLUSIVE)"]
[null,null,"100mm","EACH",100,null,{"$f":"E161*F161","v":{"v":0,"d":"R 0.00"}}]
[" PAINT SCRAPERS                                                                                                               (UNIT PRICE VAT INCLUSIVE)"]
[null,null,"50mm - Paint Scraper","EACH",10,null,{"$f":"E163*F163","v":{"v":0,"d":"R 0.00"}}]
["                                                                   OTHERS                                                                                                      (UNIT PRICE VAT INCLUSIVE)"]
[null,null,"An applicator for applying polymer sealer to hard floors","EACH",5,null,{"$f":"E165*F165","v":{"v":0,"d":"R 0.00"}}]
["TOTAL COSTS (VAT INCL) YEAR 1",{"$nulls":5},{"$f":"SUM(G24:G135)","v":{"v":0,"d":"R 0.00"}}]
[]
[null,null,"Description","Year 2","Year 3","Comments"]
[null,null,"Annual Escalation  (%)"]
[]
[null,null,"TOTAL COSTS (VAT INCL) YEAR 1",null,{"$f":"G166","v":{"v":0,"d":"R 0.00"}}]
[null,null,"TOTAL COSTS (VAT INCL) YEAR 2",null,{"$f":"E171+(E171*D169)","v":{"v":0,"d":"R 0.00"}}]
[null,null,"TOTAL COSTS (VAT INCL) YEAR 3",null,{"$f":"E172+(E172*E169)","v":{"v":0,"d":"R 0.00"}}]
[null,null,"ESTIMATED TOTAL COSTS FOR 3 YEARS (VAT INCL)",null,{"$f":"SUM(E171:E173)","v":{"v":0,"d":"R 0.00"}}]

{"sheet":"CLUSTER 3 - CHEMICALS","index":1,"n_rows":91,"n_cols":8,"rows_kept":91,"merged":[[0,1,0,8],[1,1,1,8],[2,1,2,8],[3,1,3,8],[4,0,4,8],[5,0,5,8],[6,0,6,8],[7,0,7,8],[8,0,8,8],[9,0,9,8],[10,0,10,8],[11,0,11,8],[12,0,12,8],[13,0,13,8],[14,0,14,8],[15,0,15,8],[16,0,16,8],[17,0,17,8],[19,0,19,6],[21,0,21,6],[37,0,38,0],[37,2,38,2],[82,0,82,6],[84,5,84,6],[85,5,85,6],[87,2,87,3],[88,2,88,3],[89,2,89,3],[90,2,90,3]]}
["TENDER NUMBER","RFP 02/2023"]
["TENDER NAME","SPECIFICATIONS FOR THE PROVISION OF CLEANING CONSUMABLES, CHEMICALS AND INDUSTRIAL EQUIPMENT TO SARS OFFICES NATIONWIDE"]
["CLUSTER","FREE STATE,WESTERN CAPE; EASTERN CAPE AND NORTHERN CAPE"]
["BIDDER NAME"]
["SARS CLEANING MATERIAL AND EQUIPMENT SCHEDULE"]
["Notes:"]
["1. The Bidder must only complete \"ALL GREEN\" cells in full for the Clusters they are bidding for. All highlighted cells must be populated and if no cost is inserted it will be regarded as zero."]
["2. Bidders are not allowed to change the pricing template .  Any changes by the bidders may result in their bid being non-responsive. Bidders may submit supporting documents to clarify."]
["3.Bidders are required to submit pricing only for the Clusters that they are bidding for. "]
["4. All prices provided must INCLUDE VAT. The prices must be given in South African Rand and must be all inclusive as no additional costs will be allowed."]
["5. The price will be escalated on an annual basis, in line with CPI."]
["6. Bidders are required to submit a signed hardcopy and excel version of the pricing on a soft copy."]
["7. The Bidders pricing is to remain firm for 180 days from the closing date of this tender; SARS reserves the right to negotiate with the recommended bidder prior to signing of the contract."]
["8. Bidders must take note that the tender is sub-divided into Four (4) submissions (Consumables , Chemicals, Equipment , Training and Printing), Bidders are required to complete pricing for ALL Sheets provided within the pricing template Per CLUSTER "]
["9. Bidders to read the pricing template in conjunction with the specification and the Main RFP document"]
["10. Bidders to ensure that all the items listed on the pricing template  Per CLUSTER   are priced for . An incomplete pricing response  will be disqualified  "]
["11. Quantities provided are based on annual estimates and may change. SARS reserves the right to increase or decrease SARS Sites  and quantities within a cluster due to operational requirements, at anytime during the execution of the MSA."]
["12. Supply equipment factory warranty of 12 (twelve) months and maintenance for a period of 24 (twenty-four) months from date of delivery."]
[]
["Bidders to provide codes for ordering purposes. Unit prices to be inclusive of VAT\nSIMILAR OR EQUAL TO PRODUCT, BIDDER TO STATE NAME OF PRODUCT "]
["IMAGE","CODE","DESCRIPTION - STANDARD JANITORIAL PRODUCTS","NAME OF PRODUCT ","UNIT MEASURE","ESTIMATED QUANTITIES","UNIT PRICE VAT INCL","TOTAL ANNUAL COSTS VAT INCL"]
["CHEMICALS                                                                                                                                      (UNIT PRICE VAT INCLUSIVE)"]
[null,null,"Ammodet® Ammoniated Scouring Cream                                                                                                                                                              ",null,"5L                         ",144,null,{"$f":"F23*G23","v":{"v":0,"d":"R 0.00"}}]
[null,null,"Black Fluid Phenolic Cleaner                                                                                                                                                              ",null,"5L                         ",140,null,{"$f":"F24*G24","v":{"v":0,"d":"R 0.00"}}]
[null,null,"Bowl Glo Toilet Bowl Cleaner                                                                                                                                                           ",null,"5L                         ",146,null,{"v":0,"d":"R 0.00"}]
[null,null,"Brass Glo Metal Polish                                                                                                                                                                ",null,"250ML",16,null,{"v":0,"d":"R 0.00"}]
[null,null,"Chlorguard® Sanitiser Bleach - SABS1853                                                                                                                                                           ",null,"5L                         ",812,null,{"v":0,"d":"R 0.00"}]
[null,null,"Fresh Cubes Deodoriser Cubes                                                                                                                                                           ",null,"1L Bucket           ",480,null,{"v":0,"d":"R 0.00"}]
[null,null,"Furn Glo\nFurniture Polish - 250ml                                                                                                                                                                  ",null,"250ml",40,null,{"v":0,"d":"R 0.00"}]
[null,null,"Germguard®\nCleaner Disinfectant - SABS 1853                                                                                                                                                           ",null,"5L                         ",90,null,{"v":0,"d":"R 0.00"}]
[null,null,"Inox Glo\nStainless Steel Polish                                                                                                                                                                   ",null,"750ML",120,null,{"v":0,"d":"R 0.00"}]
[null,null,"Maxidet®\nPremium Detergent - SABS1828                                                                                                                                                               ",null,"5L                         ",900,null,{"v":0,"d":"R 0.00"}]
[null,null,"Multiguard® Bio-Citrus\nCleaner Disinfectant                                                                                                                                         ",null,"5L  ",700,null,{"v":0,"d":"R 0.00"}]
[null,null,"Perle®GRIT\nGrit Hand  Cleaner                                                                                                                                                             ",null,"5Kg",5,null,{"v":0,"d":"R 0.00"}]
[null,null,"Pineguard®\nCleaner Disinfectant                                                                                                                                                             ",null,"5L                         ",700,null,{"v":0,"d":"R 0.00"}]
[null,null,"Mr.Sheen Stain Guard",null,"500ml",48,null,{"v":0,"d":"R 0.00"}]
[null,null,"Mr Min Multi Surface Cleaner Polish Lavender - Value Pack",null,"300ml",100,null,{"v":0,"d":"R 0.00"}]
[null,null,"Tusk, Hychem, Prime Auto\nScrub & Carpet Cleaner",null,"5L                         ",110,null,{"v":0,"d":"R 0.00"}]
[{"$nulls":4},"25L",160,null,{"v":0,"d":"R 0.00"}]
[null,null,"Tusk, Hychem, Prime, Brite\nPremium  Floor Polish                                                                                                                                                               ",null,"5L                         ",70,null,{"v":0,"d":"R 0.00"}]
[null,null,"Tusk, Hychem, Prime Strip\nNon-Ammoniated Floor Stripper                                                                                                                                                            ",null,"5L                         ",80,null,{"v":0,"d":"R 0.00"}]
[null,null,"Tusk, Hychem, Prime Window Glo\nWindow  Cleaner                                                                                                                                                            ",null,"5L                         ",30,null,{"v":0,"d":"R 0.00"}]
[null,null,"Pogo Brite\nPolymer Floor Dressing (22% Solids)                                                                                                                                                             ",null,"25L",10,null,{"v":0,"d":"R 0.00"}]
[null,null,"Pogo Strip\nNon-Ammoniated Floor Stripper                                                                                                                                                             ",null,"25L",70,null,{"v":0,"d":"R 0.00"}]
[null,null,"3M Stainless steel cleaner and polish",null,"650g",140,null,{"v":0,"d":"R 0.00"}]
[null,null,"3M Trouble Shooter Baseboard stripper",null,"500g",140,null,{"v":0,"d":"R 0.00"}]
[null,null,"Buddy jug 10l with Tap",null,"10l Unit",10,null,{"v":0,"d":"R 0.00"}]
[null,null,"Diner Bac 100ml (Pack of 10) Disinfectant cleaner based on quaternary ammonium compounds and detergent components",null,"100ml (pack of 10)",70,null,{"v":0,"d":"R 0.00"}]
[null,null,"Envirocal Sanitary cleaner based on natural ingredients and acids for the decalcification of acid resistant surfaces",null,"100ml (pack of 10)",20,null,{"v":0,"d":"R 0.00"}]
[null,null,"Envirocal Sanitary cleaner based on natural ingredients and acids for the decalcification of acid resistant surfaces",null,"750ml Unit",100,null,{"v":0,"d":"R 0.00"}]
[null,null,"Indubowl Indubowl 5L\n\nViscous acidic toilet bowl cleaner for the removal of lime scale and urinary stains",null,"5L",300,null,{"v":0,"d":"R 0.00"}]
[null,null,"Induclean bottle",null,"500ml Unit",100,null,{"v":0,"d":"R 0.00"}]
[null,null,"Indufoam Powerful alkaline cleaning agent for the machine cleaning of all alkali resistant surfaces",null,"20L",60,null,{"v":0,"d":"R 0.00"}]
[null,null,"Indusan \nNeutral all-purpose sanitizer and cleaner with pine fragrance",null,"5L",8,null,{"v":0,"d":"R 0.00"}]
[null,null,"Indusan \nNeutral all-purpose sanitizer and cleaner with pine fragrance",null,"500ml Unit",4,null,{"v":0,"d":"R 0.00"}]
[null,null,"Induscrub Low foaming HD degreaser",null,"5L",60,null,{"v":0,"d":"R 0.00"}]
[null,null,"Indushine \nHighly effective all-purpose interior or exterior window and glass cleaner",null,"5l                         ",50,null,{"v":0,"d":"R 0.00"}]
[null,null,"Indushine Spray Bottle 750ml spray bottle with label",null,"750ml Unit",100,null,{"v":0,"d":"R 0.00"}]
[null,null,"Indusolve versatile acidic tile cleaner for porcelain tile ",null,"5l                         ",10,null,{"v":0,"d":"R 0.00"}]
[null,null,"Indusolve Heavy duty hard surface cleaner",null,"5l                         ",10,null,{"v":0,"d":"R 0.00"}]
[null,null,"Strongly alkaline, heavily foaming cleaning agent",null,"5l                         ",50,null,{"v":0,"d":"R 0.00"}]
[null,null,"Concentrated low foaming stripper and basic cleaner",null,"5l                         ",60,null,{"v":0,"d":"R 0.00"}]
[null,null,"Strongly acidic, slightly foaming cleaning detergent concentrate",null,"5l                         ",120,null,{"v":0,"d":"R 0.00"}]
[null,null,"Strongly acidic, heavily foaming cleaning detergent concentrate",null,"5l                         ",100,null,{"v":0,"d":"R 0.00"}]
[null,null,"Viscous acidic toilet bowl cleaner for the removal of lime scale and urinary stains",null,"100ml (pack of 10)",10,null,{"v":0,"d":"R 0.00"}]
[null,null,"Progen is a high foaming all-purpose cleaner based on cleaning alcohol and surfactants",null,"5L",300,null,{"v":0,"d":"R 0.00"}]
[null,null,"Progen is a high foaming all-purpose cleaner based on cleaning alcohol and surfactants",null,"100ml (pack of 10)",350,null,{"v":0,"d":"R 0.00"}]
[null,null,"Sanitary all-purpose cleaner with a pleasant long-lasting fragrance",null,"5L",20,null,{"v":0,"d":"R 0.00"}]
[null,null,"Sanitary all-purpose cleaner with a pleasant long-lasting fragrance",null,"100ml (pack of 10)",20,null,{"v":0,"d":"R 0.00"}]
[null,null,"Sanitary all purpose cleaner with a pleasant long-lasting fragrance",null,"5L",20,null,{"v":0,"d":"R 0.00"}]
[null,null,"Sanitary all purpose cleaner with a pleasant long-lasting fragrance",null,"100ml (pack of 10)",20,null,{"v":0,"d":"R 0.00"}]
[null,null,"A concentrated tile cleaner designed for cleaning porcelain tiled areas and all washable surfaces",null,"5L",50,null,{"v":0,"d":"R 0.00"}]
[null,null,"A concentrated tile cleaner designed for cleaning porcelain tiled areas and all washable surfaces",null,"100ml (pack of 10)",80,null,{"v":0,"d":"R 0.00"}]
[null,null,"Highly active floor cleaner",null,"5L",100,null,{"v":0,"d":"R 0.00"}]
[null,null,"Heavy duty alkaline cleaner",null,"5L",1,null,{"v":0,"d":"R 0.00"}]
[null,null,"Heavy duty alkaline cleaner",null,"100ml (pack of 10)",1,null,{"v":0,"d":"R 0.00"}]
[null,null,"Alkaline polish stripper",null,"5L",1,null,{"v":0,"d":"R 0.00"}]
[null,null,"Combined disinfectant cleaner and deodoriser",null,"6g Sachet pack of 100",600,null,{"$f":"F78*G78","v":{"v":0,"d":"R 0.00"}}]
[null,null,"Pine gel one of the most versatile anti bacterial products ever. Use pine gel, to clean and sanitize floors, tiles, refuse bins even overalls.",null,"5kg Buckets",800,null,{"v":0,"d":"R 0.00"}]
[null,null,"A highly concentrated formula for use on glass, tv's, shower doors and tiles. Leaves surfaces streak-free and sparkling clean. Window kleen is highly concentrated and can be used very effectively on windows, glass ,mirrors ,T.V screen shower doors and tile.it will leave your windows streak-free and sparkling.",null,"1L",300,null,{"v":0,"d":"R 0.00"}]
[null,null,"Sunlight Dishwashing Liquid ",null,"5L",540,null,{"v":0,"d":"R 0.00"}]
[null,null,"Handy Andy Liquid ",null,"5L",650,null,{"v":0,"d":"R 0.00"}]
["TOTAL COSTS  (VAT INCL) YEAR 1",{"$nulls":6},{"$f":"SUM(H22:H82)","v":{"v":0,"d":"R 0.00"}}]
[]
[null,null,"Description","Year 2","Year 3","Comments"]
[null,null,"Annual Escalation  (%)"]
[]
[null,null,"TOTAL COSTS (VAT INCL) YEAR 1",null,{"$f":"H83","v":{"v":0,"d":"R 0.00"}}]
[null,null,"TOTAL COSTS (VAT INCL) YEAR 2",null,{"$f":"E88+(E88*D86)","v":{"v":0,"d":"R 0.00"}}]
[null,null,"TOTAL COSTS (VAT INCL) YEAR 3",null,{"$f":"E89+(E89*E86)","v":{"v":0,"d":"R 0.00"}}]
[null,null,"ESTIMATED TOTAL COSTS FOR 3 YEARS (VAT INCL)",null,{"$f":"SUM(E88:E90)","v":{"v":0,"d":"R 0.00"}}]

{"sheet":"CLUSTER 3- EQUIPMENT","index":2,"n_rows":63,"n_cols":9,"rows_kept":63,"merged":[[0,1,0,8],[1,1,1,8],[2,1,2,8],[3,1,3,8],[4,0,4,8],[5,0,5,8],[6,0,6,8],[7,0,7,8],[8,0,8,8],[9,0,9,8],[10,0,10,8],[11,0,11,8],[12,0,12,8],[13,0,13,8],[14,0,14,8],[15,0,15,8],[16,0,16,8],[17,0,17,8],[18,0,18,6],[20,0,20,8],[27,0,28,0],[53,0,53,7],[56,5,56,6],[57,5,57,6],[59,2,59,3],[60,2,60,3],[61,2,61,3],[62,2,62,3]]}
["TENDER NUMBER","RFP 02/2023"]
["TENDER NAME","SPECIFICATIONS FOR THE PROVISION OF CLEANING CONSUMABLES, CHEMICALS AND INDUSTRIAL EQUIPMENT TO SARS OFFICES NATIONWIDE"]
["CLUSTER","FREE STATE,WESTERN CAPE; EASTERN CAPE AND NORTHERN CAPE"]
["BIDDER NAME"]
["SARS CLEANING MATERIAL AND EQUIPMENT SCHEDULE"]
["Notes:"]
["1. The Bidder must only complete \"ALL GREEN\" cells in full for the Clusters they are bidding for. All highlighted cells must be populated and if no cost is inserted it will be regarded as zero."]
["2. Bidders are not allowed to change the pricing template .  Any changes by the bidders may result in their bid being non-responsive. Bidders may submit supporting documents to clarify."]
["3.Bidders are required to submit pricing only for the Clusters that they are bidding for. "]
["4. All prices provided must INCLUDE VAT. The prices must be given in South African Rand and must be all inclusive as no additional costs will be allowed."]
["5. The price will be escalated on an annual basis, in line with CPI."]
["6. Bidders are required to submit a signed hardcopy and excel version of the pricing on a soft copy."]
["7. The Bidders pricing is to remain firm for 180 days from the closing date of this tender; SARS reserves the right to negotiate with the recommended bidder prior to signing of the contract."]
["8. Bidders must take note that the tender is sub-divided into Four (4) submissions (Consumables , Chemicals, Equipment , Training and Printing), Bidders are required to complete pricing for ALL Sheets provided within the pricing template Per CLUSTER "]
["9. Bidders to read the pricing template in conjunction with the specification and the Main RFP document"]
["10. Bidders to ensure that all the items listed on the pricing template  Per CLUSTER   are priced for . An incomplete pricing response  will be disqualified  "]
["11. Quantities provided are based on annual estimates and may change. SARS reserves the right to increase or decrease SARS Sites  and quantities within a cluster due to operational requirements, at anytime during the execution of the MSA."]
["12. Supply equipment factory warranty of 12 (twelve) months and maintenance for a period of 24 (twenty-four) months from date of delivery."]
["Bidders to provide codes for ordering purposes, make, model, guarantees of the equipment being bid on \nindividual items in each region to be quoted inclusive VAT."]
["PICTURE","CODE","DESCRIPTION - STANDARD JANITORIAL PRODUCTS (PROVIDE SIMILAR OR EQUAL PRODUCT)","MAKE","MODEL","WARANTEE AND QUARANTEE PERIOD","UNIT PRICE VAT INCL","ESTIMATED QUANTITIES","TOTAL ANNUAL COSTS VAT INCL"]
["CLEANING MACHINES                                                                                                                                                                                                                   (UNIT PRICE VAT INCLUSIVE)"]
[null,null,"Carpet Blower",{"$nulls":4},20,{"$f":"G22*H22","v":{"v":0,"d":"R 0.00"}}]
[null,null,"Numatic (Equivalent/Similar) WV 370-2 wet and dry vacuum cleaner ",{"$nulls":4},30,{"$f":"G23*H23","v":{"v":0,"d":"R 0.00"}}]
[null,null,"POGO VKP15 (Equivalent/Similar) - 15L DRY VACUUM CLEANER (PLASTIC TANK)",{"$nulls":4},19,{"$f":"G24*H24","v":{"v":0,"d":"R 0.00"}}]
[null,null,"POGO VKS30 (Equivalent/Similar) - 30L WET/DRY VACUUM CLEANER (STAINLESS STEEL TANK) ",{"$nulls":4},8,{"v":0,"d":"R 0.00"}]
[null,null,"VACUUM BAG - NUMATIC HEPA-FLO NVM-2BH (Equivalent/Similar)                                                                            ",{"$nulls":4},300,{"v":0,"d":"R 0.00"}]
[null,null,"VACUUM BAG - TRAPIT SINGLE BAG\n(SUGGESTED FOR USE IN ALL FINE DUST APPLICATIONS)                                                                                  ",{"$nulls":4},260,{"v":0,"d":"R 0.00"}]
[null,null,"POGO SWS-1 (Equivalent/Similar) -  SINGLE DISC POLISHER 150 RPM  INCLUDES - 425MM PAD DRIVE, HARD\nSCRUBBING BRUSH & SOFT CLEANING BRUSH",{"$nulls":4},4,{"v":0,"d":"R 0.00"}]
[null,null,"POGO SWS-2 (Equivalent/Similar) - SINGLE DISC POLISHER 150 RPM  INCLUDES - \n425MM PAD DRIVE ONLY                                                       ",{"$nulls":4},8,{"v":0,"d":"R 0.00"}]
[null,null,"Solution Tank for POGO SWS-1 and POGO SWS-2",{"$nulls":4},4,{"v":0,"d":"R 0.00"}]
[null,null,"Push Sweeper BLUE ",{"$nulls":4},7,{"v":0,"d":"R 0.00"}]
[null,null,"Machine with a heap filter is great for everyday cleaning in hospitality, offering performance and value.",{"$nulls":4},4,{"v":0,"d":"R 0.00"}]
[null,null,"Single disk Dual speed single disc for easy, efficient and cost-effective maintenance of virtually all floors for contract cleaners, education, healthcare, hospitality, warehouse and logistics",{"$nulls":4},2,{"v":0,"d":"R 0.00"}]
[null,null,"Walk behind scrubber driers for contract cleaners, education, healthcare, hospitality, warehouse and logistics",{"$nulls":4},2,{"v":0,"d":"R 0.00"}]
[null,null,"Robust and reliable wet extraction carpet cleaner. Carpet cleaning machines, Cleaning machines\nfor contract cleaners, education, heavy Industry, hospitality",{"$nulls":4},12,{"v":0,"d":"R 0.00"}]
[null,null,"High Pressure Washers: agriculture, automotive, building and construction, contract cleaners, food and beverage, warehouse and logistics",{"$nulls":4},2,{"$f":"G36*H36","v":{"v":0,"d":"R 0.00"}}]
[null,null,"Nilfisk-Amix 50-50-21PC Clean room  building and construction, contract cleaners, heavy Industry, pharmaceutical",{"$nulls":4},2,{"v":0,"d":"R 0.00"}]
[null,null,"Industrial T2 Walk Behind and /or ride on Auto Scrubber",{"$nulls":4},4,{"v":0,"d":"R 0.00"}]
[null,null,"Industrial Multispeed Burnishers",{"$nulls":4},2,{"v":0,"d":"R 0.00"}]
[null,null,"Leaf Blower",{"$nulls":4},3,{"v":0,"d":"R 0.00"}]
[null,null,"Carpet NHL 15 hi-lo water extraction vacuum with 2400 suction power and 1060w motor ",{"$nulls":4},20,{"v":0,"d":"R 0.00"}]
[null,null,"Carpet Clean Dry Blower",{"$nulls":4},20,{"v":0,"d":"R 0.00"}]
[null,null,"High Pressure Washer",{"$nulls":4},1,{"v":0,"d":"R 0.00"}]
[null,null,"800mm aluminium step ladder",{"$nulls":4},40,{"v":0,"d":"R 0.00"}]
[null,null,"9m 18 Pc Window Kit",{"$nulls":4},5,{"v":0,"d":"R 0.00"}]
[null,null,"12 M extension Cord",{"$nulls":4},20,{"v":0,"d":"R 0.00"}]
[null,null,"Ryobi - Hand Hedge Trimmer and Grass Shear",{"$nulls":4},8,{"v":0,"d":"R 0.00"}]
[null,null,"Garden Leaf Rake with plastic head and wooden Handle",{"$nulls":4},6,{"v":0,"d":"R 0.00"}]
[null,null,"33LT SERVER MOPPING TROLLEY WITH WRINGER, CADDY AND ACCESSORY BUCKET",{"$nulls":4},15,{"v":0,"d":"R 0.00"}]
[null,null,"50L DOUBLE SAUL BUCKET & WRINGER (WITH CADDY)",{"$nulls":4},5,{"v":0,"d":"R 0.00"}]
[null,null,"PLASTIC LONG HANDLE SCOOP (includes Whiska broom)",{"$nulls":4},5,{"v":0,"d":"R 0.00"}]
[null,null,"Hooded Plastic long handle scoop (No broom included)",{"$nulls":4},5,{"v":0,"d":"R 0.00"}]
[null,null,"Litter  Picker",{"$nulls":4},5,{"v":0,"d":"R 0.00"}]
["TOTAL COST (VAT INCL) ",{"$nulls":7},{"$f":"SUM(I21:I53)","v":{"v":0,"d":"R 0.00"}}]
[]
[]
[null,null,"Description","Year 2","Year 3","Comments"]
[null,null,"Annual Escalation  (%)"]
[]
[null,null,"TOTAL COSTS (VAT INCL) YEAR 1",null,{"$f":"I54","v":{"v":0,"d":"R 0.00"}}]
[null,null,"TOTAL COSTS (VAT INCL) YEAR 2",null,{"$f":"E60+(E60*D58)","v":{"v":0,"d":"R 0.00"}}]
[null,null,"TOTAL COSTS (VAT INCL) YEAR 3",null,{"$f":"E61+(E61*E58)","v":{"v":0,"d":"R 0.00"}}]
[null,null,"ESTIMATED TOTAL COSTS FOR 3 YEARS (VAT INCL)",null,{"$f":"SUM(E60:E62)","v":{"v":0,"d":"R 0.00"}}]

{"sheet":"CLUSTER 3- TRAINING","index":3,"n_rows":34,"n_cols":4,"rows_kept":34,"merged":[[1,1,1,5],[2,1,2,5],[3,1,3,5],[4,1,4,5],[7,0,7,2],[9,0,9,3],[10,0,11,0],[10,2,11,2],[10,3,11,4],[12,3,12,4],[13,3,13,4],[14,0,14,2],[14,3,14,4],[18,0,19,0],[18,2,19,2],[18,3,19,4],[20,3,20,4],[22,0,22,2],[22,3,22,4],[26,3,26,4],[27,3,27,4],[30,1,30,2],[31,1,31,2],[32,1,32,2],[33,1,33,2]]}
[]
["TENDER NUMBER","RFP 02/2023"]
["TENDER NAME","SPECIFICATIONS FOR THE PROVISION OF CLEANING CONSUMABLES, CHEMICALS AND INDUSTRIAL EQUIPMENT TO SARS OFFICES NATIONWIDE"]
["CLUSTER","FREE STATE,WESTERN CAPE; EASTERN CAPE AND NORTHERN CAPE"]
["BIDDER NAME"]
["SARS CLEANING MATERIAL AND EQUIPMENT TRAINING PRICING SCHEDULE"]
[]
["Bidders must complete the pricing schedule using information from Clusters provided. All prices must include VAT."]
[]
["TABLE 1:  ANNUAL TRAINING:"]
["ITEMS","NO OF SARS CLEANERS PER Cluster","ANNUAL UNIT PRICE VAT INCLUSIVE","TOTAL ANNUAL COSTS VAT INCL"]
[null,"FS;WC;EC & NC"]
["Cost of advanced technical training per Cluster ",170,null,{"$f":"C13*B13","v":{"v":0,"d":"R 0.00"}}]
["Cost of printed copy: Training manuals",170,null,{"$f":"C14*B14","v":{"v":0,"d":"R 0.00"}}]
["TOTAL VALUE VAT INCLUSIVE",null,null,{"$f":"SUM(D13:D14)","v":{"v":0,"d":"R 0.00"}}]
[]
[]
["TABLE 2:  LEVER ARCH FILES"]
["ITEMS","NO OF LEVER ARCH FILE","ANNUAL UNIT PRICE VAT INCLUSIVE","TOTAL ANNUAL COSTS VAT INCL"]
[null,"FS;WC;EC & NC"]
["Number of Lever Arch Files of Manuals required per Cluster. ",56,null,{"$f":"B21*C21","v":{"v":0,"d":"R 0.00"}}]
[]
["TOTAL VALUE YEAR 1 (VAT INCLUSIVE)",null,null,{"$f":"D21+D15","v":{"v":0,"d":"R 0.00"}}]
[]
[]
[]
["Description","Year 2","Year 3","Comments"]
["Annual Escalation  (%)"]
[]
[]
[null,"TOTAL COSTS (VAT INCL) YEAR 1",null,{"$f":"D23","v":{"v":0,"d":"R 0.00"}}]
[null,"TOTAL COSTS (VAT INCL) YEAR 2",null,{"$f":"D31+(D31*B28)","v":{"v":0,"d":"R 0.00"}}]
[null,"TOTAL COSTS (VAT INCL) YEAR 3",null,{"$f":"D32+(D32*C28)","v":{"v":0,"d":"R 0.00"}}]
[null,"ESTIMATED TOTAL COSTS FOR 3 YEARS (VAT INCL)",null,{"$f":"SUM(D31:D33)","v":{"v":0,"d":"R 0.00"}}]